Cogmind - Beta 9.2 @@@ ROGUE MODE // 2019.11.19 @ 22:01:59 Player: Valguris Result: Escaped singularity! Performance ------------- Evolutions (9) 4500 Regions Visited (29) 5800 Robots Destroyed (411) 2055 Value Destroyed (32854) 32854 Prototype IDs (106) 2120 Alien Tech Used (12) 2400 Bonus (62454) 62454 TOTAL SCORE: 112183 Bonus ------- High Alert Combat Kills 8234 Follower Combat Kills 8148 Entered Garrisons 1600 Used RIF Installer 4000 Aligned with FarCom 300 Met Sigix 2000 Destroyed MAIN.C Guards 500 Met MAIN.C 5000 Destroyed MAIN.C Shell 5000 Destroyed MAIN.C 10000 Met Architect 300 Destroyed A8 300 Destroyed A6 400 Destroyed Architect 15000 Win 3000 Friendly Fire -1328 Cogmind --------- Core Integrity 941/1600 Matter 227/300 Energy 98/100 System Corruption 0% Temperature Cool (0) Movement Hovering (36) Location Near Former Tau Ceti IV Parts ------- > --- POWER (2) -------- (None) > --- PROPULSION (3) --- Cooled Linear Gravjet > --- UTILITY (18) ----- (None) > --- WEAPON (2) ------- (None) > --- INVENTORY (4) ---- Vortex Chain Reactor Core Stripper Peak State ------------ > --- POWER ------------ Vortex Chain Reactor > --- PROPULSION ------- Biometal Medium Treads Experimental Biometal Heavy Treads > --- UTILITY ---------- Desublimator High-capacity Storage Unit High-capacity Storage Unit High-capacity Storage Unit Lightpack 2.0 Experimental Matter Compressor Long-range Terrain Scanner Advanced Terrain Scan Processor Experimental Targeting Computer Advanced Armor Integrity Analyzer Advanced Kinecellerator Damper Plating Phase Armor Experimental Force Field > --- WEAPON ----------- Omega Cannon > --- INVENTORY -------- Cooled Antimatter Reactor Vortex Chain Reactor Medium Treads Advanced Medium Treads Biometal Medium Treads Experimental Biometal Heavy Treads Experimental Cooling System Experimental Energy Well Experimental Matter Compressor Experimental Targeting Computer Advanced Launcher Guidance Computer Experimental Core Analyzer Matter Filter Quantum Capacitor Experimental Weapon Shielding Powered Armor SHELL Armor Experimental Thermal Shield Improved Force Field High-powered Tractor Beam High-powered Transdimensional Reconstructor HERF Cannon Compact HERF Cannon Latent Energy Streamer EMDS Cooled Nova Cannon Cooled Nova Cannon Compact Tesla Bomb Launcher Gamma Bomb Array Z-bomb Delivery System Core Stripper Sigix Containment Pod [Rating: 241] Favorites ----------- Power Antimatter Reactor Engine Improved Deuterium Engine Power Core Nuclear Core Reactor Antimatter Reactor Propulsion Improved Treads Treads Improved Treads Hover Unit Cooled Linear Gravjet Utility High-capacity Storage Unit Device Quantum Capacitor Storage High-capacity Storage Unit Processor Experimental Targeting Computer Hackware Relay Coupler [Sentry] Protection Damper Plating Artifact Phase Armor Weapon Advanced Remote Datajack Energy Gun Spread Laser Energy Cannon Nova Cannon Ballistic Gun Assault Rifle Ballistic Cannon Light Cannon Launcher Mini Grenade Launcher Special Weapon Advanced Remote Datajack Impact Weapon Core Stripper Slashing Weapon Longsword +1 Special Melee Weapon Datajack Build | -11 -10 -10 -10 -9 -8 -8 -7 -7 -6 -6 -6 -6 -5 -5 -5 -5 -4 -4 -4 -4 -3 -3 -3 -2 -2 -2 -1 -1 -1 ------- Run | Scr Mat Min Exi Min Mat Gar Fac Gar Fac Gar Fac Gar Fac Was Fac Gar Fac Gar Fac Gar Res Tes Gar Res Qua Sec Acc Com Ac0 Slots Evolved 18 | . . . . . 4 . 2 . 2 . . . 2 . . . 2 . . . 2 . . 2 . . 2 . . Power 1 | . . . . . . . . . . . . . . . . . . . . . 1 . . . . . . . . Propulsion 1 | . . . . . 1 . . . . . . . . . . . . . . . . . . . . . . . . Utility 16 | . . . . . 3 . 2 . 2 . . . 2 . . . 2 . . . 1 . . 2 . . 2 . . Weapon . | . . . . . . . . . . . . . . . . . . . . . . . . . . . . . . Parts Attached 618 | 6 19 . 6 3 13 13 11 28 4 36 15 21 3 7 1 13 3 11 1 6 24 40 17 39 51 92 32 58 45 Power 23 | 1 1 . . . 2 . . 2 . . . 1 . 2 . . 1 . . . 1 5 . 1 3 3 . . . Engine 5 | 1 1 . . . 1 . . 1 . . . 1 . . . . . . . . . . . . . . . . . Core 2 | . . . . . 1 . . 1 . . . . . . . . . . . . . . . . . . . . . Reactor 16 | . . . . . . . . . . . . . . 2 . . 1 . . . 1 5 . 1 3 3 . . . Propulsion 31 | 2 5 . . . 1 . 1 1 . 1 4 . . 1 1 . . 1 . . 2 1 . 1 3 2 . 2 2 Treads 30 | 2 5 . . . 1 . 1 1 . 1 4 . . 1 1 . . 1 . . 2 1 . 1 3 2 . 2 1 Leg . | . . . . . . . . . . . . . . . . . . . . . . . . . . . . . . Wheel . | . . . . . . . . . . . . . . . . . . . . . . . . . . . . . . Hover 1 | . . . . . . . . . . . . . . . . . . . . . . . . . . . . . 1 Flight . | . . . . . . . . . . . . . . . . . . . . . . . . . . . . . . Utility 289 | 1 3 . 2 1 5 5 8 10 3 10 7 10 2 4 . 9 2 7 1 6 9 21 11 23 20 38 12 27 32 Device 109 | . . . . . 1 4 . 4 2 3 1 5 . 2 . 2 . . . . 1 12 5 8 8 12 1 14 24 Storage 13 | 1 1 . 2 1 1 . 1 . . . . . . . . . . . . . 1 1 . 1 . . . 2 1 Processor 5 | . . . . . . . . . . . . . . . . . . . . . 1 . . . . . . 2 2 Hackware 75 | . . . . . . . 3 2 . 6 4 4 2 1 . 6 2 7 1 6 4 4 6 6 3 1 3 4 . Protection 85 | . 2 . . . 3 1 4 4 1 1 2 1 . 1 . 1 . . . . 2 4 . 8 9 25 8 4 4 Artifact 2 | . . . . . . . . . . . . . . . . . . . . . . . . . . . . 1 1 Weapon 275 | 2 10 . 4 2 5 8 2 15 1 25 4 10 1 . . 4 . 3 . . 12 13 6 14 25 49 20 29 11 Energy Gun 7 | 1 2 . 2 . . . . . . . . . . . . . . . . . 1 . 1 . . . . . . Energy Cannon 152 | . . . 1 1 2 5 . 8 1 11 2 4 1 . . 3 . 2 . . 5 8 2 8 16 31 15 20 6 Ballistic Gun 4 | 1 1 . . . . 1 . . . . . . . . . . . . . . . . . . . 1 . . . Ballistic Cannon 18 | . 4 . . 1 1 . . . . 1 . . . . . . . . . . . 1 . 1 2 . 1 1 5 Launcher 34 | . . . . . 2 2 . 6 . 7 1 4 . . . 1 . 1 . . 1 1 2 2 . 1 1 2 . Special Weapon 51 | . 3 . . . . . 1 . . 3 1 2 . . . . . . . . 5 2 1 3 6 16 2 6 . Impact Weapon 2 | . . . . . . . . . . . . . . . . . . . . . . . . . 1 . 1 . . Slashing Weapon 6 | . . . . . . . 1 1 . 3 . . . . . . . . . . . 1 . . . . . . . Piercing Weapon . | . . . . . . . . . . . . . . . . . . . . . . . . . . . . . . Special Melee Weapon 1 | . . . 1 . . . . . . . . . . . . . . . . . . . . . . . . . . Unidentified Prototypes 23 | . . . . . . . . . . . . . . . . . . . . . 2 5 . . 7 3 . 1 5 Parts Lost 23 | . 1 . . . 1 . . . . 2 . 2 . . . . . . . . 1 1 . 4 1 1 . 1 8 Power 3 | . . . . . . . . . . . . 1 . . . . . . . . . 1 . 1 . . . . . Propulsion 3 | . . . . . . . . . . 1 . . . . . . . . . . . . . 1 . . . . 1 Utility 12 | . . . . . 1 . . . . . . . . . . . . . . . 1 . . 2 1 1 . . 6 Weapon 4 | . 1 . . . . . . . . 1 . 1 . . . . . . . . . . . . . . . 1 . Highest Loss Streak 3 | . 1 . . . 1 . . . . 1 . 1 . . . . . . . . 1 1 . 2 1 1 . 1 3 Average Slot Usage (%) 85 | . 99 100 99 100 93 100 98 96 88 92 90 97 87 94 93 82 74 83 77 82 80 78 79 78 77 72 75 76 70 Engine 2 | . 14 14 14 14 8 . . 2 6 6 6 6 5 . . . . . . . . . . . . . . . . Reactor 3 | . . . . . . . . . . . . . . 4 5 5 5 5 5 5 9 8 9 7 7 4 4 4 3 Treads 14 | . 28 28 28 28 27 27 23 23 20 19 19 20 17 12 10 11 10 10 10 10 9 9 9 7 7 8 8 8 7 Device 7 | . . . . . 9 9 2 4 7 10 2 7 . 9 5 3 5 4 . . 1 6 4 7 7 11 14 14 18 Storage 20 | . 14 14 22 28 24 27 29 30 26 26 26 26 23 23 23 23 21 21 21 21 15 17 19 17 17 17 16 16 17 Hackware 15 | . . . . . . . 7 7 6 8 14 21 22 28 29 19 17 26 25 29 28 20 21 22 21 18 21 16 . Protection 5 | . 13 14 5 . 6 9 10 5 7 6 6 1 5 . 5 5 5 5 5 5 4 4 4 4 3 3 4 4 5 Energy Gun 1 | . 10 14 11 14 . . . . . . . . . . . . . . . . . . . . . . . . . Energy Cannon 4 | . . . . . 8 9 8 8 8 5 5 5 5 5 5 4 5 4 5 5 4 3 3 3 3 3 3 2 1 Ballistic Cannon 1 | . 4 14 14 14 9 . . . . . . . . . . . . . . . . . . . . . . . 2 Launcher 1 | . . . . . . 6 . 2 4 1 . 1 . . . . . . . . . . . . . . . 1 . Special Weapon 3 | . 2 . . . . . 4 3 . 4 5 5 5 5 5 5 5 5 5 5 3 3 3 3 4 4 3 3 . Naked Turns 1 | . . . . . . . . . . . . . . . . . . . . . . . . . . . . . 1 Heaviest Build 271 | 11 30 30 59 75 116 121 145 151 168 163 160 154 150 151 151 187 187 189 188 188 204 209 194 209 219 218 220 235 271 Greatest Support 130 | 40 46 46 46 46 69 69 69 66 66 66 67 66 66 92 97 97 97 97 97 97 97 107 107 107 108 123 123 130 130 Greatest Overweight (x) 6 | . . . 1 1 1 1 2 2 2 2 2 2 2 2 1 1 1 1 1 1 2 2 1 2 6 1 1 1 2 Average Overweight (x) 1 | . . . . 1 1 1 1 1 2 2 2 1 2 1 1 1 1 1 1 1 1 1 1 1 1 1 1 1 . Largest Inventory Capacity 54 | 6 10 10 18 20 28 28 34 34 34 34 34 34 34 34 34 34 34 34 34 34 54 48 48 48 48 48 48 48 48 Average Capacity 37 | 5 9 10 14 18 25 28 33 34 34 34 34 34 34 34 34 34 34 34 34 34 37 46 48 48 48 48 48 48 47 Most Carried 48 | 6 10 10 17 19 28 28 34 34 34 34 34 34 34 34 34 34 34 34 34 34 40 48 48 48 48 48 48 48 47 Average Carried 36 | 3 9 10 13 17 23 27 30 33 33 33 33 33 32 33 34 33 33 33 33 33 36 44 47 46 47 47 46 46 42 Final Capacity 48 | 6 10 10 18 20 28 28 34 34 34 34 34 34 34 34 34 34 34 34 34 34 40 48 48 48 48 48 48 48 4 Final Carried 48 | 6 10 10 17 19 28 28 34 34 32 34 34 34 33 34 34 34 34 34 33 34 38 48 48 46 48 47 48 45 4 Class Distribution -------------------- 58% | Botlord-Mutant 18% | Bothacker-Mutant 11% | Hauler-Mutant 8% | Mutant Dominant Class ---------------- Mutant | -10/Materials Mutant | -10/Mines Mutant | -10/Exiles Mutant | -9/Mines Hauler-Mutant | -8/Materials Hauler-Mutant | -8/Garrison Bothacker-Mutant | -7/Factory Bothacker-Mutant | -7/Garrison Bothacker-Mutant | -6/Factory Bothacker-Mutant | -6/Garrison Bothacker-Mutant | -6/Factory Bothacker-Mutant | -6/Garrison Botlord-Mutant | -5/Factory Botlord-Mutant | -5/Waste Botlord-Mutant | -5/Factory Botlord-Mutant | -5/Garrison Botlord-Mutant | -4/Factory Botlord-Mutant | -4/Garrison Botlord-Mutant | -4/Factory Botlord-Mutant | -4/Garrison Botlord-Mutant | -3/Research Botlord-Mutant | -3/Testing Botlord-Mutant | -3/Garrison Botlord-Mutant | -2/Research Botlord-Mutant | -2/Quarantine Botlord-Mutant | -2/Section 7 Botlord-Mutant | -1/Access Botlord-Mutant | -1/Command Hauler-Mutant | -1/Access_0 Resources | -11 -10 -10 -10 -9 -8 -8 -7 -7 -6 -6 -6 -6 -5 -5 -5 -5 -4 -4 -4 -4 -3 -3 -3 -2 -2 -2 -1 -1 -1 ----------- Run | Scr Mat Min Exi Min Mat Gar Fac Gar Fac Gar Fac Gar Fac Was Fac Gar Fac Gar Fac Gar Res Tes Gar Res Qua Sec Acc Com Ac0 Matter Collected 17251 | 206 359 73 . 102 191 416 135 486 40 563 186 514 75 100 25 425 80 199 15 150 594 1442 360 1487 898 2104 1204 3148 1674 Remotely 664 | . . . . . . . . . . . . . . . . . . . . . . . . . . . . . 664 Salvage Created 24254 | . 385 125 . 76 407 668 76 496 59 566 52 342 . 1593 . 198 75 87 . . 759 1399 232 1666 1513 4031 2059 6009 1381 Parts 1067 | . 28 13 . 1 38 37 3 33 1 19 7 26 . 23 . 11 4 12 . . 33 91 9 76 71 185 88 195 63 Haulers Intercepted 5 | . 2 . . . 1 . . . . . . . . . . . . . . . . . . . . 2 . . . Recyclers Shooed 5 | . . . . . . . 1 . . . . . . . . . . . . . . 1 . 2 . . . 1 . Parts Field Recycled . | . . . . . . . . . . . . . . . . . . . . . . . . . . . . . . Retrieved Matter . | . . . . . . . . . . . . . . . . . . . . . . . . . . . . . . Parts Self-Destructed . | . . . . . . . . . . . . . . . . . . . . . . . . . . . . . . Prevented . | . . . . . . . . . . . . . . . . . . . . . . . . . . . . . . Kills | -11 -10 -10 -10 -9 -8 -8 -7 -7 -6 -6 -6 -6 -5 -5 -5 -5 -4 -4 -4 -4 -3 -3 -3 -2 -2 -2 -1 -1 -1 ------- Run | Scr Mat Min Exi Min Mat Gar Fac Gar Fac Gar Fac Gar Fac Was Fac Gar Fac Gar Fac Gar Res Tes Gar Res Qua Sec Acc Com Ac0 Combat Hostiles Destroyed 353 | . 6 8 . . 9 23 1 17 1 14 3 18 . 6 . 4 1 5 . . 7 17 3 26 17 55 33 64 15 Melee 3 | . . . . . . . . . . 3 . . . . . . . . . . . . . . . . . . . Guns 10 | . 5 4 . . . 1 . . . . . . . . . . . . . . . . . . . . . . . Cannons 146 | . 1 4 . . 2 7 1 3 1 3 . 1 . 6 . 1 1 . . . 5 13 2 16 12 26 11 25 5 AOE 118 | . . . . . 7 15 . 14 . 8 3 17 . . . 3 . 5 . . . 3 . 4 . 11 11 17 . Classes Destroyed 21 | . 4 1 . 1 3 2 . 1 . 1 . 1 . 1 . 1 . . . . 1 . . . 1 2 . 1 . Worker 13 | . 1 . . . 3 . . . . . . . . . . . . . . . . . . . . 4 1 4 . Builder 3 | . . . . . 1 . 2 . . . . . . . . . . . . . . . . . . . . . . Hauler 5 | . 2 . . . 1 . . . . . . . . . . . . . . . . . . . . 2 . . . Recycler 12 | . . . . 1 . . . . . . . . . . . . . . . . 1 2 . 1 . . 1 6 . Operator 1 | . . . . . . . . . . . . . . . . . . . . . . . . . . 1 . . . Watcher 19 | . 3 . . . 5 . . . . . . . . . . . . . . . 2 1 1 . . 3 1 3 . Swarmer 90 | . . 6 . . 4 10 . 12 . 2 3 10 . . . 3 . 5 . . . 4 1 . 1 6 10 13 . Saboteur 1 | . . . . . . . . . . . . . . . . . . . . . . . . . . . . 1 . Grunt 85 | . 6 2 . . 2 5 . 3 . 9 . 6 . . . . . . . . . . . 9 4 16 8 15 . Brawler 8 | . . . . . 1 1 . . . . . . . . . . . . . . . . . 1 . 2 . 3 . Duelist 9 | . . . . . . 1 . 2 . . . 1 . . . . . . . . . . . . . 1 3 1 . Protector 3 | . . . . . . . . . . . . 1 . . . . . . . . . . . . 1 1 . . . Sentry 13 | . . . . . 2 5 1 2 1 1 . . . . . 1 . . . . . . . . . . . . . Demolisher 1 | . . . . . . . . . . . . . . . . . . . . . . . . . . . . 1 . Specialist 1 | . . . . . . . . 1 . . . . . . . . . . . . . . . . . . . . . Hunter 39 | . . . . . . 1 . . . . . . . . . . 1 . . . 5 4 2 4 2 5 4 11 . Programmer 67 | . . . . . . . . . . . . . . . . . . . . . 3 9 . 12 5 20 8 10 . Behemoth 5 | . . . . . . . . . . 2 . . . . . . . . . . . . . . . . . 3 . Compactor 6 | . . . . . . . . . . . . . . 6 . . . . . . . . . . . . . . . S7 Guard 2 | . . . . . . . . . . . . . . . . . . . . . . . . . . 2 . . . M Guard 2 | . . . . . . . . . . . . . . . . . . . . . . . . . . . . 2 . Enhanced Grunt 7 | . . . . . . . . . . . . . . . . . . . . . . . . . . . . . 7 Enhanced Hunter 5 | . . . . . . . . . . . . . . . . . . . . . . . . . . . . . 5 Lightning 3 | . . . . . . . . . . . . . . . . . . . . . . . . . 3 . . . . Combat Programmer 2 | . . . . . . . . . . . . . . . . . . . . . . . . . . . . 2 . Executioner 2 | . . . . . . . . . . . . . . . . . . . . . . . . . . 2 . . . Fortress 1 | . . . . . . . . . . . . . . . . . . . . . . . . . 1 . . . . Martyr 1 | . . . . . . . . . . . . . . . . 1 . . . . . . . . . . . . . Best Kill Streak 17 | . 5 3 . 1 11 6 2 4 1 3 3 5 . 2 . 3 1 5 . . 4 4 3 9 4 10 6 17 5 Combat Bots Only 13 | . 3 3 . . 4 6 1 4 1 3 3 5 . 2 . 3 1 5 . . 4 4 3 8 4 8 6 13 8 Max Kills in Single Turn 8 | . 1 2 . 1 3 3 1 3 1 2 3 3 . 1 . 3 1 5 . . 1 1 1 3 1 5 6 8 2 Gunslinging . | . . . . . . . . . . . . . . . . . . . . . . . . . . . . . . Exploded 8 | . . . . . 3 3 . 2 . 2 3 3 . . . 3 . 5 . . . 1 . 3 . 4 6 8 . Melee 1 | . . . . . . . . . . 1 . . . . . . . . . . . . . . . . . . . Uniques/NPCs Destroyed 4 | . . . . . . . . . . . . . . . . . . . . . . . . . . . . 1 3 MAIN.C Shell (-1/Command) MAIN.C (-1/Command) A8 (-1/Access_0) A6 (-1/Access_0) Architect (-1/Access_0) Combat | -11 -10 -10 -10 -9 -8 -8 -7 -7 -6 -6 -6 -6 -5 -5 -5 -5 -4 -4 -4 -4 -3 -3 -3 -2 -2 -2 -1 -1 -1 -------- Run | Scr Mat Min Exi Min Mat Gar Fac Gar Fac Gar Fac Gar Fac Was Fac Gar Fac Gar Fac Gar Res Tes Gar Res Qua Sec Acc Com Ac0 Damage Taken 19984 | . 461 207 14 . 307 251 204 260 365 953 197 774 5 . 66 213 271 217 181 142 897 1185 703 3389 993 1217 348 1397 4767 Core 1471 | . 36 29 14 . 72 63 15 30 38 103 7 25 5 . . 23 . . 2 . 70 86 31 69 36 129 55 68 465 Absorbed by Shields 8338 | . . . . . . 6 . 20 . . . . . . . . . . . . . 280 490 806 250 286 363 1456 4381 Reduced by Siege Mode 144 | . . . . . . . . . . . . . . . . . . . . . . . 14 48 3 . . . 79 Core Remaining (%) 81 | 100 . . . 68 . 75 . 93 . . . 79 . . . 97 . . . 99 . . 85 . . 59 . . 58 Volleys Fired 2003 | . 52 13 . 3 35 75 16 46 7 76 18 54 10 105 11 81 15 36 8 33 83 141 48 144 126 215 110 247 195 Largest 2 | . 2 2 . 2 2 2 1 2 2 2 1 2 1 1 1 1 1 1 1 1 2 1 1 1 1 1 1 1 1 Hottest 226 | . 100 100 . 100 110 160 80 196 196 196 98 150 98 98 98 98 98 113 30 113 226 113 113 120 120 120 120 120 100 Shots Fired 2120 | . 95 26 . 6 52 96 16 50 12 82 18 55 10 105 11 81 15 36 8 33 86 141 48 144 127 215 110 247 195 Gun 108 | . 76 13 . 3 . 2 . . . . . . . . . . . . . . . . 14 . . . . . . Cannon 1479 | . 13 13 . 3 44 76 6 27 12 49 2 22 1 99 10 24 3 22 . 5 41 92 14 98 97 191 101 219 195 Launcher 97 | . . . . . 8 18 . 17 . 12 2 16 . . . 2 . 1 . . . 3 . 1 . 3 4 10 . Special 436 | . 6 . . . . . 10 6 . 21 14 17 9 6 1 55 12 13 8 28 45 46 20 45 30 21 5 18 . Kinetic 218 | . 58 13 . 3 17 2 . . . 3 . . . . . . . . . . . 3 . 5 1 . 1 23 89 Thermal 996 | . 37 13 . 3 27 73 6 27 12 46 2 . 1 99 10 24 3 22 . 5 31 70 3 68 74 123 55 110 52 Explosive 97 | . . . . . 8 18 . 17 . 12 2 16 . . . 2 . 1 . . . 3 . 1 . 3 4 10 . Electromagnetic 379 | . . . . . . 3 . . . . . 22 . . . . . . . . 10 19 25 25 22 68 45 86 54 Robot Hit Streak 31 | . 14 6 . 4 11 14 12 5 6 12 17 10 12 12 13 15 12 7 3 6 8 22 17 19 19 14 19 31 25 Robot Miss Streak 5 | . 2 4 . 3 2 1 2 1 1 2 2 1 1 2 1 2 1 1 1 2 3 3 1 3 3 3 4 5 2 Penetration Max . | . . . . . . . . . . . . . . . . . . . . . . . . . . . . . . Secondary Targets . | . . . . . . . . . . . . . . . . . . . . . . . . . . . . . . Capacitor 749 | . . . . . . . . . . . . . . . . . . . . . . . 24 46 96 191 100 189 103 Shots Hit Robots 1355 | . 66 20 1 5 28 24 13 15 7 52 13 21 7 82 6 49 13 13 5 22 58 94 41 99 92 129 67 172 141 Core Hits 611 | . 25 19 . 6 25 27 1 34 1 26 3 36 . 15 1 9 1 7 . . 14 28 9 27 22 81 38 106 50 Critical Hits 32 | . . . . . 1 . . . 1 . . . . . . . . . . . . 2 . 1 1 7 . 10 9 Critical Kills 8 | . . . . . . . . . . . . . . . . . . . . . . . . . . 3 . 3 2 Critical Parts Destroyed 15 | . . . . . 1 . . . 1 . . . . . . . . . . . . 2 . 1 1 3 . 1 5 Melee Attacks 24 | . . . 1 . . . 1 1 . 15 . . . . . . . . . . . 2 . . 3 . 1 . . Kinetic 4 | . . . . . . . . . . . . . . . . . . . . . . . . . 3 . 1 . . Impact . | . . . . . . . . . . . . . . . . . . . . . . . . . . . . . . Slashing 19 | . . . . . . . 1 1 . 15 . . . . . . . . . . . 2 . . . . . . . Piercing . | . . . . . . . . . . . . . . . . . . . . . . . . . . . . . . Sneak Attacks 11 | . . . 1 . . . 1 1 . 8 . . . . . . . . . . . . . . . . . . . Combat Hostiles 9 | . . . . . . . . 1 . 8 . . . . . . . . . . . . . . . . . . . Follow-up Attacks . | . . . . . . . . . . . . . . . . . . . . . . . . . . . . . . Damage Inflicted 70044 | . 860 248 . 65 1346 1605 327 1913 194 2625 182 1624 . 2761 171 594 71 430 . . 1254 3311 627 5129 3446 10152 7058 15782 8269 Guns 1071 | . 687 130 . 48 . 13 . . . . . . . . . . . . . . . . 193 . . . . . . Cannons 43787 | . 118 103 . 17 524 514 73 260 194 577 . 50 . 2761 171 202 71 81 . . 1247 2829 434 3582 3245 5646 3413 9624 8051 Explosions 22930 | . . . . . 773 1078 . 1537 . 918 169 1574 . . . 381 . 349 . . . 405 . 1367 . 4487 3576 6158 158 Melee 1442 | . . . . . . . 129 94 . 1130 . . . . . . . . . . . . . . 89 . . . . Ramming 814 | . 55 15 . . 49 . 125 22 . . 13 . . . . 11 . . . . 7 77 . 180 112 19 69 . 60 Kinetic 8840 | . 482 103 . 17 124 13 . . . 95 . . . . . . . . . . . 203 . 520 89 . . 2640 4554 Thermal 25521 | . 323 130 . 48 400 514 73 260 194 482 . . . 2761 171 202 71 81 . . 980 1961 124 2131 2521 3704 2151 4038 2201 Explosive 16287 | . . . . . 773 1078 . 1537 . 918 169 1574 . . . 381 . 349 . . . 405 . 1180 . 2520 2723 2680 . Electromagnetic 17229 | . . . . . . . . . . . . 50 . . . . . . . . 267 665 503 1118 724 3909 2115 6424 1454 Impact . | . . . . . . . . . . . . . . . . . . . . . . . . . . . . . . Slashing 1353 | . . . . . . . 129 94 . 1130 . . . . . . . . . . . . . . . . . . . Piercing . | . . . . . . . . . . . . . . . . . . . . . . . . . . . . . . Highest Corruption 6 | . . . . . . . . . . . . . . . . . . . . . . 1 1 4 6 6 . . . Average Corruption 4 | . . . . . . . . . . . . . . . . . . . . . . 1 1 2 4 6 . . . Corruption Purged . | . . . . . . . . . . . . . . . . . . . . . . . . . . . . . . Effects 157 | . . . . . . . . . . . . . . . . . . . . . . 1 7 15 53 81 . . . Message Errors 44 | . . . . . . . . . . . . . . . . . . . . . . 1 2 1 16 24 . . . Matter Fused 37 | . . . . . . . . . . . . . . . . . . . . . . . . 7 15 15 . . . Heat Flow Errors 12 | . . . . . . . . . . . . . . . . . . . . . . . . 1 4 7 . . . Energy Discharges 18 | . . . . . . . . . . . . . . . . . . . . . . . 3 . 5 10 . . . Parts Rejected 1 | . . . . . . . . . . . . . . . . . . . . . . . . . . 1 . . . Data Loss (minor) 12 | . . . . . . . . . . . . . . . . . . . . . . . 2 1 3 6 . . . Data Loss (major) 3 | . . . . . . . . . . . . . . . . . . . . . . . . . 1 2 . . . Misfires 4 | . . . . . . . . . . . . . . . . . . . . . . . . . 2 2 . . . Targeting Errors 23 | . . . . . . . . . . . . . . . . . . . . . . . . 5 6 12 . . . Weapon Failures 3 | . . . . . . . . . . . . . . . . . . . . . . . . . 1 2 . . . Overload Shots . | . . . . . . . . . . . . . . . . . . . . . . . . . . . . . . Overflow Damage 3531 | . . . . . 5 12 2 12 . 300 . 37 . . 11 16 . 5 . . 42 254 27 592 167 654 665 463 267 Projectiles 1999 | . . . . . . . . . . . . . . . 11 . . . . . 42 242 27 258 140 361 264 397 257 Explosions 1129 | . . . . . 1 12 . 12 . 4 . 37 . . . 16 . 5 . . . . . 291 . 293 382 66 10 Melee 403 | . . . . . 4 . 2 . . 296 . . . . . . . . . . . 12 . 43 27 . 19 . . Knockbacks 60 | . 3 2 . . 3 . 1 . . . . . . . . . . . . . . 3 . 6 1 . 1 8 32 Impact 10 | . . . . . 1 . 1 . . . . . . . . . . . . . . 1 . 3 1 . 1 . 2 Kinetic 47 | . 2 2 . . 2 . . . . . . . . . . . . . . . . 2 . 3 . . . 7 29 Secondary 3 | . 1 . . . . . . . . . . . . . . . . . . . . . . . . . . 1 1 Self-Inflicted Damage 489 | . . . . . 102 53 . 49 . 76 14 181 . . . . . . . . . 14 . . . . . . . Shots 23 | . . . . . 4 3 . 4 . 3 1 7 . . . . . . . . . 1 . . . . . . . Rammed 47 | . 14 2 . . 4 . 4 1 . . 1 . . . . 1 . . . . 1 2 . 8 4 2 1 . 2 Targets Rammed 51 | . 15 2 . . 4 . 6 1 . . 1 . . . . 1 . . . . 1 2 . 8 4 2 2 . 2 Kicked . | . . . . . . . . . . . . . . . . . . . . . . . . . . . . . . Crushed 4 | . 1 . . . . . 2 . . . . . . . . . . . . . . . . . . . 1 . . Highest Temperature 429 | . 361 285 . 117 16 315 90 322 411 174 126 108 50 100 . 264 180 231 22 85 317 344 298 429 335 352 172 316 . Average Temperature 79 | . 80 120 . 59 8 71 29 94 152 35 56 21 13 34 . 58 51 59 11 31 88 102 127 118 106 97 53 99 . Received Heat Transfer 1722 | . 255 45 . . 81 45 57 6 114 201 . 54 . . . 45 51 27 . 21 87 . 29 230 77 80 32 80 105 Effects 7 | . 1 . . . . . . 1 . . . . . . . . . . . . 2 1 . . 1 1 . . . Shutdowns 2 | . . . . . . . . 1 . . . . . . . . . . . . . . . . . 1 . . . Energy Bleed 1 | . . . . . . . . . . . . . . . . . . . . . 1 . . . . . . . . Interference 2 | . . . . . . . . . . . . . . . . . . . . . 1 1 . . . . . . . Short Circuit 1 | . 1 . . . . . . . . . . . . . . . . . . . . . . . . . . . . Damage (minor) 1 | . . . . . . . . . . . . . . . . . . . . . . . . . 1 . . . . Siege Activations 8 | . . . . . . . . . . . . . . . . . . . . . . . 2 1 2 . . . 3 Total Turns 186 | . . . . . . . . . . . . . . . . . . . . . . . 30 38 39 . . . 79 Longest Duration 47 | . . . . . . . . . . . . . . . . . . . . . . . 25 38 38 . . . 47 Robots Corrupted 76 | . . . . . . . . . . . . . . . . . . . . . 2 3 2 5 4 17 11 22 10 Combat Hostiles 74 | . . . . . . . . . . . . . . . . . . . . . 2 3 1 5 4 16 11 22 10 Parts Fried 157 | . . . . . . . 1 . . . . . . . . . . . . . . 8 4 9 5 42 19 46 23 Impact Corruptions 13 | . . . . . 1 . 1 . . . . . . . . . . . . . . 4 . 3 2 . 1 1 . Robots Melted 3 | . . . . . . . . . . . . . . . . . . . . . . . . 1 . 2 . . . Combat Hostiles 3 | . . . . . . . . . . . . . . . . . . . . . . . . 1 . 2 . . . Parts Melted 56 | . 1 . . . 1 4 . 1 . 1 . . . 1 . . . . . . . 2 1 11 1 18 10 4 . Heat Transferred 20133 | . 962 160 . 55 592 1000 150 400 300 700 . . . 2960 185 222 74 74 . . 851 1517 111 1482 1924 2405 1406 2071 532 Parts Sabotaged . | . . . . . . . . . . . . . . . . . . . . . . . . . . . . . . Parts Stolen . | . . . . . . . . . . . . . . . . . . . . . . . . . . . . . . Parts Stripped . | . . . . . . . . . . . . . . . . . . . . . . . . . . . . . . Power Chain Reactions 4 | . . . . . . . . . . . . . . . . . . . . . . . . 1 . . . 2 1 Missiles Intercepted . | . . . . . . . . . . . . . . . . . . . . . . . . . . . . . . Latent Energy Used 2687 | . . . . . . . . . . . . . . . . . . . . . . . . . . 1143 387 1157 . LE Corruption 42 | . . . . . . . . . . . . . . . . . . . . . . . . . . 18 6 18 . Alert | -11 -10 -10 -10 -9 -8 -8 -7 -7 -6 -6 -6 -6 -5 -5 -5 -5 -4 -4 -4 -4 -3 -3 -3 -2 -2 -2 -1 -1 -1 ------- Run | Scr Mat Min Exi Min Mat Gar Fac Gar Fac Gar Fac Gar Fac Was Fac Gar Fac Gar Fac Gar Res Tes Gar Res Qua Sec Acc Com Ac0 Peak Influence 1773 | . 202 140 . 5 178 1349 747 1647 916 1252 687 818 429 197 540 1352 736 701 541 682 445 293 600 467 319 1251 1504 1773 . Average Influence 545 | . 71 66 . . 75 850 662 1093 877 945 361 564 350 63 243 1067 651 593 415 575 147 115 461 232 211 530 1256 1341 . Maximum Alert Level 5 | . 1 . . . . 4 3 5 3 4 2 3 2 . 2 4 3 3 2 2 2 1 2 2 1 4 4 5 . Low Security (%) 27 | 100 97 100 . 100 100 14 . . . . 26 5 . 100 40 . . . . . 70 76 8 40 43 5 . . . Level 1 14 | . 2 . . . . 2 . . . . 37 11 80 . 35 4 . 11 71 9 18 23 7 52 56 45 . . . Level 2 19 | . . . . . . 15 42 10 . 11 36 62 19 . 24 11 40 75 28 90 11 . 84 6 . 19 . . . Level 3 16 | . . . . . . 41 57 44 100 52 . 20 . . . 19 59 13 . . . . . . . 27 20 5 . Level 4 12 | . . . . . . 27 . 40 . 35 . . . . . 64 . . . . . . . . . 2 79 12 . Level 5 10 | . . . . . . . . 4 . . . . . . . . . . . . . . . . . . . 81 . High Security . | . . . . . . . . . . . . . . . . . . . . . . . . . . . . . . Max Security . | . . . . . . . . . . . . . . . . . . . . . . . . . . . . . . Squads Dispatched 86 | . 3 . . . 1 . 2 . 1 . 1 . 1 . 2 . 3 . 2 . 12 13 . 10 9 13 7 6 . Investigation 12 | . 2 . . . . . 1 . . . 1 . 1 . 1 . 1 . . . 1 . . 1 1 . 2 . . Extermination 26 | . . . . . . . . . . . . . . . . . . . . . 2 4 . 3 4 9 2 2 . Reinforcement 25 | . 1 . . . 1 . 1 . . . . . . . . . 1 . 1 . 6 6 . 3 1 3 1 . . Assault 7 | . . . . . . . . . . . . . . . . . . . . . . . . . . 1 2 4 . Garrison 16 | . . . . . . . . . 1 . . . . . 1 . 1 . 1 . 3 3 . 3 3 . . . . Intercept . | . . . . . . . . . . . . . . . . . . . . . . . . . . . . . . Construction Impeded 6 | . . . . . 1 . . . . . . . . . . . . . . . 2 1 . 1 . . 1 . . Haulers Reinforced 5 | . . . . . . . 1 . . . . . . . . . . . 1 . 1 . . 1 . 1 . . . Alert ID Control Effect 167 | . . . . . . . . . . 9 3 9 4 . . 8 8 13 5 6 28 15 8 15 15 10 4 7 . Stealth | -11 -10 -10 -10 -9 -8 -8 -7 -7 -6 -6 -6 -6 -5 -5 -5 -5 -4 -4 -4 -4 -3 -3 -3 -2 -2 -2 -1 -1 -1 --------- Run | Scr Mat Min Exi Min Mat Gar Fac Gar Fac Gar Fac Gar Fac Was Fac Gar Fac Gar Fac Gar Res Tes Gar Res Qua Sec Acc Com Ac0 Distress Signals 43 | . 1 . . . . . . . . . . . . . 1 . . . 1 . 4 . . 4 2 5 2 23 . Communications Jammed . | . . . . . . . . . . . . . . . . . . . . . . . . . . . . . . Distress Signals . | . . . . . . . . . . . . . . . . . . . . . . . . . . . . . . Times Spotted 791 | . 19 7 1 . 17 15 8 31 2 33 9 36 9 6 8 47 13 25 7 24 54 47 24 69 42 82 41 82 33 Peak Tracking Total 13 | . 3 3 1 . 4 3 2 6 2 5 3 7 9 2 4 11 3 13 2 12 5 5 10 11 5 10 7 10 6 Tactical Retreats 32 | . 3 . . . 1 1 . . . 1 . . . . . 2 . . . 2 . 4 1 5 1 7 2 2 . Traps | -11 -10 -10 -10 -9 -8 -8 -7 -7 -6 -6 -6 -6 -5 -5 -5 -5 -4 -4 -4 -4 -3 -3 -3 -2 -2 -2 -1 -1 -1 ------- Run | Scr Mat Min Exi Min Mat Gar Fac Gar Fac Gar Fac Gar Fac Was Fac Gar Fac Gar Fac Gar Res Tes Gar Res Qua Sec Acc Com Ac0 Traps Triggered 66 | . . . . . . 10 1 2 . 2 3 7 1 . . 9 1 8 1 5 . 2 2 . . . 1 11 . Indirectly 1 | . . . . . . . . . . . . . . . . . . . . . . . . . . . 1 . . Trap Hack Attempts . | . . . . . . . . . . . . . . . . . . . . . . . . . . . . . . Triggered . | . . . . . . . . . . . . . . . . . . . . . . . . . . . . . . Disarmed . | . . . . . . . . . . . . . . . . . . . . . . . . . . . . . . Reprogrammed . | . . . . . . . . . . . . . . . . . . . . . . . . . . . . . . Reused . | . . . . . . . . . . . . . . . . . . . . . . . . . . . . . . Traps Extracted . | . . . . . . . . . . . . . . . . . . . . . . . . . . . . . . Installed . | . . . . . . . . . . . . . . . . . . . . . . . . . . . . . . Triggered . | . . . . . . . . . . . . . . . . . . . . . . . . . . . . . . Exploded 3 | . . . 3 . . . . . . . . . . . . . . . . . . . . . . . . . . Machines | -11 -10 -10 -10 -9 -8 -8 -7 -7 -6 -6 -6 -6 -5 -5 -5 -5 -4 -4 -4 -4 -3 -3 -3 -2 -2 -2 -1 -1 -1 ---------- Run | Scr Mat Min Exi Min Mat Gar Fac Gar Fac Gar Fac Gar Fac Was Fac Gar Fac Gar Fac Gar Res Tes Gar Res Qua Sec Acc Com Ac0 Machines Disabled 121 | . . . . . 1 14 . 11 . 6 2 5 1 . 2 6 . 4 3 4 3 10 4 2 11 16 6 5 5 Max in Single Turn 3 | . . . . . 1 2 . 2 . 1 1 1 . . . 2 . 1 . 1 1 1 1 1 1 1 3 2 1 Garrison Relay 35 | . . . . . . 5 . 5 . 5 . 4 . . . 4 . 4 . 4 . . 4 . . . . . . Phase Generator 4 | . . . . . . 1 . 1 . . . . . . . 1 . . . . . . . . . . . 1 . Machines Sabotaged . | . . . . . . . . . . . . . . . . . . . . . . . . . . . . . . Garrisons Compromised . | . . . . . . . . . . . . . . . . . . . . . . . . . . . . . . Overloaded Fab Kills . | . . . . . . . . . . . . . . . . . . . . . . . . . . . . . . Fab Network Shutdowns . | . . . . . . . . . . . . . . . . . . . . . . . . . . . . . . Hacking | -11 -10 -10 -10 -9 -8 -8 -7 -7 -6 -6 -6 -6 -5 -5 -5 -5 -4 -4 -4 -4 -3 -3 -3 -2 -2 -2 -1 -1 -1 --------- Run | Scr Mat Min Exi Min Mat Gar Fac Gar Fac Gar Fac Gar Fac Was Fac Gar Fac Gar Fac Gar Res Tes Gar Res Qua Sec Acc Com Ac0 Machines Accessed 77 | . 8 . 5 . 5 . 2 . 1 . 2 . 1 . 2 . 2 . 1 . 4 8 . 6 9 13 4 4 . Terminals 52 | . 6 . . . 4 . . . . . 1 . . . 1 . 1 . . . 3 6 . 4 7 12 4 3 . Fabricators 1 | . . . . . . . 1 . . . . . . . . . . . . . . . . . . . . . . Repair Stations . | . . . . . . . . . . . . . . . . . . . . . . . . . . . . . . Recycling Units 5 | . 2 . . . . . . . . . . . 1 . . . . . . . . . . 1 . . . 1 . Scanalyzers 3 | . . . . . . . . . . . . . . . . . . . . . . 1 . . 1 1 . . . Garrison Access 11 | . . . . . 1 . 1 . 1 . 1 . . . 1 . 1 . 1 . 1 1 . 1 1 . . . . Total Hacks 217 | . 19 . 49 . 18 . 4 . 2 . 4 . 2 . 5 . 5 . 2 . 9 18 . 15 14 28 12 11 . Successful 142 | . 12 . 49 . 9 . 4 . 2 . 3 . 1 . 3 . 3 . 2 . 4 10 . 7 12 13 3 5 . Failed 75 | . 7 . . . 9 . . . . . 1 . 1 . 2 . 2 . . . 5 8 . 8 2 15 9 6 . Catastrophic 12 | . . . . . 1 . . . . . 1 . . . . . 1 . . . 2 1 . 2 . 3 . 1 . Database Lockouts . | . . . . . . . . . . . . . . . . . . . . . . . . . . . . . . Manual 102 | . 10 . 1 . 14 . 1 . . . 1 . 1 . 3 . 3 . . . 7 13 . 8 11 17 4 8 . Terminals 128 | . 16 . . . 17 . . . . . 1 . . . 2 . 2 . . . 7 15 . 10 11 25 12 10 . Fabricators 1 | . . . . . . . 1 . . . . . . . . . . . . . . . . . . . . . . Repair Stations . | . . . . . . . . . . . . . . . . . . . . . . . . . . . . . . Recycling Units 7 | . 3 . . . . . . . . . . . 2 . . . . . . . . . . 1 . . . 1 . Scanalyzers 6 | . . . . . . . . . . . . . . . . . . . . . . 1 . . 2 3 . . . Garrison Access 26 | . . . . . 1 . 3 . 2 . 3 . . . 3 . 3 . 2 . 2 2 . 4 1 . . . . Terminal Hacks 81 | . 7 . 49 . 3 . . . . . . . . . . . . . . . . 4 . 3 5 7 2 1 . Record 49 | . . . 48 . . . . . . . . . . . . . . . . . . . . . 1 . . . . Prototype ID Bank 2 | . 1 . . . 1 . . . . . . . . . . . . . . . . . . . . . . . . Open Door 7 | . . . . . . . . . . . . . . . . . . . . . . . . . 1 3 2 1 . Branch Access Points 2 | . 1 . . . . . . . . . . . . . . . . . . . . . . 1 . . . . . Unreport Threat 2 | . . . . . . . . . . . . . . . . . . . . . . . . 1 . 1 . . . Locate Traps 4 | . 1 . . . . . . . . . . . . . . . . . . . . 1 . . 1 1 . . . Disarm Traps 1 | . . . . . . . . . . . . . . . . . . . . . . . . . 1 . . . . Dispatch Records 1 | . . . . . . . . . . . . . . . . . . . . . . 1 . . . . . . . Investigation Status 1 | . 1 . . . . . . . . . . . . . . . . . . . . . . . . . . . . Recall Extermination 2 | . . . . . . . . . . . . . . . . . . . . . . . . . 1 1 . . . Recall Reinforcements 1 | . . . . . . . . . . . . . . . . . . . . . . 1 . . . . . . . Hauler Manifests 4 | . 1 . . . 1 . . . . . . . . . . . . . . . . 1 . . . 1 . . . Registered Components 1 | . 1 . . . . . . . . . . . . . . . . . . . . . . . . . . . . Registered Prototypes 1 | . 1 . . . . . . . . . . . . . . . . . . . . . . . . . . . . Zone Layout 2 | . . . . . 1 . . . . . . . . . . . . . . . . . . 1 . . . . . EX-Prototype ID Bank 1 | . . . 1 . . . . . . . . . . . . . . . . . . . . . . . . . . Fabricator Hacks 1 | . . . . . . . 1 . . . . . . . . . . . . . . . . . . . . . . Build 1 | . . . . . . . 1 . . . . . . . . . . . . . . . . . . . . . . Repair Station Hacks . | . . . . . . . . . . . . . . . . . . . . . . . . . . . . . . Recycling Unit Hacks 1 | . . . . . . . . . . . . . . . . . . . . . . . . 1 . . . . . Retrieve Components 1 | . . . . . . . . . . . . . . . . . . . . . . . . 1 . . . . . Scanalyzer . | . . . . . . . . . . . . . . . . . . . . . . . . . . . . . . Garrison Access Hacks 17 | . . . . . 1 . 2 . 2 . 2 . . . 2 . 2 . 2 . 1 2 . 1 . . . . . Unlock Access 8 | . . . . . 1 . 1 . 1 . 1 . . . 1 . 1 . 1 . . 1 . . . . . . . Coupler Status 9 | . . . . . . . 1 . 1 . 1 . . . 1 . 1 . 1 . 1 1 . 1 . . . . . Unauthorized Hacks 119 | . 12 . . . 13 . 2 . . . 2 . 2 . 4 . 4 . . . 9 12 . 7 16 20 4 12 . Terminals 31 | . 3 . . . 5 . . . . . . . . . 1 . . . . . 2 4 . 1 5 5 1 4 . Track 8 | . 2 . . . . . . . . . . . . . 1 . . . . . . 2 . . 1 1 . 1 . Assimilate 2 | . . . . . 2 . . . . . . . . . . . . . . . . . . . . . . . . Botnet 18 | . 1 . . . 3 . . . . . . . . . . . . . . . 2 2 . 1 3 3 1 2 . Disrupt 1 | . . . . . . . . . . . . . . . . . . . . . . . . . . . . 1 . Operators 2 | . . . . . . . . . . . . . . . . . . . . . . . . . 1 1 . . . Fabricators . | . . . . . . . . . . . . . . . . . . . . . . . . . . . . . . Repair Stations . | . . . . . . . . . . . . . . . . . . . . . . . . . . . . . . Recycling Units 3 | . 2 . . . . . . . . . . . 1 . . . . . . . . . . . . . . . . Tunnel 3 | . 2 . . . . . . . . . . . 1 . . . . . . . . . . . . . . . . Scanalyzers 2 | . . . . . . . . . . . . . . . . . . . . . . . . . 1 1 . . . Researchers 2 | . . . . . . . . . . . . . . . . . . . . . . . . . 1 1 . . . Garrison Access 6 | . . . . . . . 1 . . . 1 . . . . . 1 . . . 1 . . 1 1 . . . . Watchers 1 | . . . . . . . . . . . . . . . . . . . . . . . . 1 . . . . . Eject 5 | . . . . . . . 1 . . . 1 . . . . . 1 . . . 1 . . . 1 . . . . Data Cores Recovered 1 | . . . . . . . . . . . . . . . . . . . . . . . . . . 1 . . . Used . | . . . . . . . . . . . . . . . . . . . . . . . . . . . . . . Hacking Detections 57 | . 5 . . . 3 . 1 . 1 . 2 . 1 . 2 . 2 . 1 . 4 7 . 5 3 12 4 4 . Full Trace Events 4 | . . . . . . . . . . . . . . . 1 . . . . . . . . 1 . . 2 . . Feedback Events 1 | . . . . . . . . . . . . . . . . . . . . . . . . 1 . . . . . Corruption 1 | . . . . . . . . . . . . . . . . . . . . . . . . 1 . . . . . Feedback Blocked . | . . . . . . . . . . . . . . . . . . . . . . . . . . . . . . Robot Schematics Acquired . | . . . . . . . . . . . . . . . . . . . . . . . . . . . . . . Robots Built . | . . . . . . . . . . . . . . . . . . . . . . . . . . . . . . Matter . | . . . . . . . . . . . . . . . . . . . . . . . . . . . . . . Time . | . . . . . . . . . . . . . . . . . . . . . . . . . . . . . . Total Robot Build Rating . | . . . . . . . . . . . . . . . . . . . . . . . . . . . . . . Part Schematics Acquired 10 | . . . . . . . . . . . . . . . . . . . . . . 10 . . . . . . . Parts Built 1 | . . . . . . . 1 . . . . . . . . . . . . . . . . . . . . . . Matter 168 | . . . . . . . 168 . . . . . . . . . . . . . . . . . . . . . . Time 84 | . . . . . . . 84 . . . . . . . . . . . . . . . . . . . . . . Total Part Build Rating 4 | . . . . . . . 4 . . . . . . . . . . . . . . . . . . . . . . Parts Repaired . | . . . . . . . . . . . . . . . . . . . . . . . . . . . . . . Time . | . . . . . . . . . . . . . . . . . . . . . . . . . . . . . . Parts Recycled . | . . . . . . . . . . . . . . . . . . . . . . . . . . . . . . Recycled Matter . | . . . . . . . . . . . . . . . . . . . . . . . . . . . . . . Retrieved Matter . | . . . . . . . . . . . . . . . . . . . . . . . . . . . . . . Retrieved Components 6 | . . . . . . . . . . . . . . . . . . . . . . . . 6 . . . . . Parts Scanalyzed . | . . . . . . . . . . . . . . . . . . . . . . . . . . . . . . Part Schematics Acquired . | . . . . . . . . . . . . . . . . . . . . . . . . . . . . . . Parts Damaged . | . . . . . . . . . . . . . . . . . . . . . . . . . . . . . . Bothacking | -11 -10 -10 -10 -9 -8 -8 -7 -7 -6 -6 -6 -6 -5 -5 -5 -5 -4 -4 -4 -4 -3 -3 -3 -2 -2 -2 -1 -1 -1 ------------ Run | Scr Mat Min Exi Min Mat Gar Fac Gar Fac Gar Fac Gar Fac Was Fac Gar Fac Gar Fac Gar Res Tes Gar Res Qua Sec Acc Com Ac0 Used RIF Installer 8 | . . . . . . 1 . 1 . 1 . 1 . . . 1 . 1 . 1 . . 1 . . . . . . Coupler Efficiency 3 | . . . . . . . . . . 1 . 1 . . . . . . . 1 . . . . . . . . . Robot Detection 1 | . . . . . . . . . . . . . . . . . . . . . . . 1 . . . . . . Alert ID Control 1 | . . . . . . . . 1 . . . . . . . . . . . . . . . . . . . . . Structural Interface 1 | . . . . . . . . . . . . . . . . . . 1 . . . . . . . . . . . Autoassimilate 1 | . . . . . . . . . . . . . . . . 1 . . . . . . . . . . . . . Robots Hacked 241 | . . . 1 . . . 5 4 . 14 4 9 7 5 1 18 7 10 6 17 23 25 14 22 17 13 3 16 . Non-combat 24 | . . . . . . . 2 . . . 1 . . . . . 1 . 1 . 2 4 1 7 2 1 . 2 . Combat 217 | . . . 1 . . . 3 4 . 14 3 9 7 5 1 18 6 10 5 17 21 21 13 15 15 12 3 14 . Autoassimilated 27 | . . . . . . . . . . . . . . . . 2 1 4 . 2 2 5 4 . 2 2 . 3 . Robot Hacks Applied 251 | . . . 1 . . . 8 4 . 15 9 9 7 6 1 17 7 6 6 16 26 31 11 27 15 13 3 13 . parse_system 25 | . . . 1 . . . 1 . . . 1 . 1 . . 2 1 . 2 2 4 2 2 1 1 2 . 2 . no_distress 1 | . . . . . . . . . . . . . . . . . . . . . . 1 . . . . . . . find_chute 2 | . . . . . . . 1 . . . . . . . . . 1 . . . . . . . . . . . . map_walls 2 | . . . . . . . . . . . . . . . . . . . . . . . . 2 . . . . . drop_inventory 4 | . . . . . . . . . . . . . . . . . . . . . 1 1 . 1 1 . . . . recall_reinforcements 1 | . . . . . . . . . . . . . . . . . . . . . . . . 1 . . . . . purge_threat 3 | . . . . . . . . . . . 3 . . . . . . . . . . . . . . . . . . find_terminals 2 | . . . . . . . . . . . . . . . . . . . . . 2 . . . . . . . . locate_traps 1 | . . . . . . . . . . . 1 . . . . . . . . . . . . . . . . . . block_reporting 1 | . . . . . . . . . . . . . . . . . . . . . . . . . . 1 . . . map_route 5 | . . . . . . . 1 . . . . . . . . . . . . . . 1 . 3 . . . . . relay_feed 1 | . . . . . . . 1 . . . . . . . . . . . . . . . . . . . . . . disable_shields 1 | . . . . . . . . . . . . . . . . . . . . . . . . . 1 . . . . disable_scanner 9 | . . . . . . . . . . . . . . . . . . . . . . 3 . . 3 3 . . . locate_prototypes 4 | . . . . . . . . . . . . . . . . . . . . . . 2 . . 1 1 . . . report_schematics 1 | . . . . . . . . . . . . . . . . . . . . . . 1 . . . . . . . report_analyses 5 | . . . . . . . . . . . . . . . . . . . . . . 5 . . . . . . . ignore_targets 6 | . . . . . . . . . . . . . . 6 . . . . . . . . . . . . . . . find_garrison 6 | . . . . . . . 1 . . . 1 . 1 . 1 . 1 . 1 . . . . . . . . . . spike_heat 1 | . . . . . . . . . . . . . . . . . . . . 1 . . . . . . . . . amplify_resonance 2 | . . . . . . . . . . . . . . . . . . . . . . 1 . . . 1 . . . reboot_system 9 | . . . . . . . . 1 . 4 . . . . . . . . . . 2 . . 1 . . . 1 . overwrite_iff 29 | . . . . . . . . 1 . 5 . 2 3 . . 1 . 1 . . 4 . 2 7 1 . 1 1 . streamctrl_low 3 | . . . . . . . . . . . . . . . . . . . . . . 3 . . . . . . . formatsys_low 3 | . . . . . . . . . . . . . . . . . . . . . . 1 . 1 . . . 1 . formatsys_high 124 | . . . . . . . 3 2 . 6 3 7 2 . . 14 4 5 3 13 13 10 7 10 7 5 2 8 . Relay Couplers Released 164 | . . . . . . 17 4 17 . 21 . 16 . . . 17 3 18 . 18 7 . 15 . 7 . 4 . . Ejected 14 | . . . . . . . 4 . . . . . . . . . 3 . . . 4 . . . 3 . . . . Machine Destruction 139 | . . . . . . 17 . 17 . 21 . 16 . . . 17 . 18 . 18 . . 15 . . . . . . Programmers 11 | . . . . . . . . . . . . . . . . . . . . . 3 . . . 4 . 4 . . Attached 73 | . . . . . . . 3 2 . 6 4 4 2 1 . 6 2 7 1 6 4 4 6 5 3 1 2 4 . Robots Rewired 22 | . . . . . . . . 9 . . . . . . . 9 1 . . . . . 1 . 1 1 . . . Allies Hacked 15 | . . . . . . . . . . . . . . . . . . . 1 . 2 3 . 3 2 4 . . . Hacks Repelled . | . . . . . . . . . . . . . . . . . . . . . . . . . . . . . . Allies | -11 -10 -10 -10 -9 -8 -8 -7 -7 -6 -6 -6 -6 -5 -5 -5 -5 -4 -4 -4 -4 -3 -3 -3 -2 -2 -2 -1 -1 -1 -------- Run | Scr Mat Min Exi Min Mat Gar Fac Gar Fac Gar Fac Gar Fac Was Fac Gar Fac Gar Fac Gar Res Tes Gar Res Qua Sec Acc Com Ac0 Total Allies 221 | . . . . . . . 3 12 . 10 3 9 5 18 . 26 6 10 3 15 19 17 14 16 11 8 3 13 . Largest Group 18 | . . . . . . . 3 12 1 3 3 4 4 18 18 16 17 17 12 13 14 6 9 9 6 2 2 5 . Highest-Rated Group 740 | . . . . . . . 96 275 38 105 84 143 137 668 668 561 674 740 525 617 678 266 320 349 467 222 116 231 . Highest-Rated Ally 222 | . . . . . . . 32 38 38 81 41 41 47 50 50 81 56 115 115 115 115 58 47 147 147 222 58 67 . Total Orders 128 | . . . . . . . . 13 . . 1 2 . 11 3 2 . . 1 17 . 3 4 13 9 19 4 26 . STAY 17 | . . . . . . . . 2 . . . . . 1 . . . . . . . . 2 4 2 5 . 1 . GOTO 60 | . . . . . . . . 5 . . . 1 . 6 . 1 . . . 9 . 2 1 3 4 8 2 18 . FOLLOW 42 | . . . . . . . . 6 . . . . . 4 1 1 . . 1 8 . 1 1 6 3 6 2 2 . AID 5 | . . . . . . . . . . . . . . . . . . . . . . . . . . . . 5 . EXPLORE 2 | . . . . . . . . . . . . . . . 2 . . . . . . . . . . . . . . RETURN 2 | . . . . . . . . . . . 1 1 . . . . . . . . . . . . . . . . . Ally Attacks 1483 | . . . . . . . 4 73 6 72 11 57 34 44 76 151 66 80 36 68 184 98 74 122 92 39 13 83 . Total Damage 43673 | . . . . . . . 141 1908 197 1635 253 2387 726 702 1685 3600 1826 2588 1060 1627 6369 2887 1842 3517 3407 1915 454 2947 . Kills 259 | . . . . . . . . 12 . 11 3 16 4 . 16 30 9 16 9 14 33 19 12 15 17 10 4 9 . Allies Corrupted 14 | . . . . . . . . . . . . . . . . 2 . . . . 3 . . 4 2 1 1 1 . Allies Melted . | . . . . . . . . . . . . . . . . . . . . . . . . . . . . . . Intel | -11 -10 -10 -10 -9 -8 -8 -7 -7 -6 -6 -6 -6 -5 -5 -5 -5 -4 -4 -4 -4 -3 -3 -3 -2 -2 -2 -1 -1 -1 ------- Run | Scr Mat Min Exi Min Mat Gar Fac Gar Fac Gar Fac Gar Fac Was Fac Gar Fac Gar Fac Gar Res Tes Gar Res Qua Sec Acc Com Ac0 Robot Analysis Total . | . . . . . . . . . . . . . . . . . . . . . . . . . . . . . . Derelict Logs Recovered 1 | . . 1 . . . . . . . . . . . . . . . . . . . . . . . . . . . Drone Launches 7 | . . . . . . . . . . . 2 1 . 2 . . . . . . . . . . 2 . . . . Drone Recoveries 3 | . . . . . . . . . . . 2 1 . . . . . . . . . . . . . . . . . Exploration | -11 -10 -10 -10 -9 -8 -8 -7 -7 -6 -6 -6 -6 -5 -5 -5 -5 -4 -4 -4 -4 -3 -3 -3 -2 -2 -2 -1 -1 -1 ------------- Run | Scr Mat Min Exi Min Mat Gar Fac Gar Fac Gar Fac Gar Fac Was Fac Gar Fac Gar Fac Gar Res Tes Gar Res Qua Sec Acc Com Ac0 Turns Passed 36823 | 77 1269 853 671 413 1313 2462 701 1965 180 1745 543 1751 148 1023 515 1755 537 1206 220 1011 1352 1958 1337 1394 1582 2948 896 4372 626 Spaces Moved 16806 | 42 638 429 346 209 590 1190 312 828 74 738 260 868 68 456 264 789 267 580 102 488 585 809 634 587 673 1432 416 1982 150 Core 6 | 4 . . . . . . . . . . . . . . . . . . . . . . . . . . . . 2 Treads 16791 | 38 638 429 346 209 590 1190 312 828 74 738 260 868 68 456 264 789 267 580 102 488 585 809 634 587 673 1432 416 1982 139 Legs . | . . . . . . . . . . . . . . . . . . . . . . . . . . . . . . Wheels . | . . . . . . . . . . . . . . . . . . . . . . . . . . . . . . Hover 9 | . . . . . . . . . . . . . . . . . . . . . . . . . . . . . 9 Flight . | . . . . . . . . . . . . . . . . . . . . . . . . . . . . . . Fastest Speed 36 | 50 160 160 160 180 180 180 180 180 200 200 185 165 185 172 172 185 185 185 185 185 190 185 185 180 180 167 167 160 36 Average Speed 179 | 149 160 160 166 180 180 180 187 195 200 200 187 179 185 173 184 185 185 185 185 185 196 196 185 183 182 168 167 166 152 Slowest Speed 280 | 160 160 160 180 180 180 180 200 200 200 200 200 185 185 185 185 185 185 185 185 185 210 210 185 200 280 180 167 167 180 Overloaded Moves 2 | . . . . . . . . . . . . . . . . . . . . . . . . . . . . . 2 Propulsion Burnouts . | . . . . . . . . . . . . . . . . . . . . . . . . . . . . . . Robots Hopped 1 | . . . . . . . . . . . . . . . . . . . . . . . . . . . . 1 . Cave-ins Triggered . | . . . . . . . . . . . . . . . . . . . . . . . . . . . . . . Teleports 2 | . . . . . . . . . . . . . . . . . . . . . . . . . . . . 1 1 Exploration Rate (%) 54 | 4 94 54 70 40 50 95 13 88 2 95 12 99 4 97 14 99 12 99 5 99 22 80 98 19 83 77 15 87 14 Regions Visited 29 Branch Regions 8 Pre-discovered Areas 5 | . 2 1 1 . . . . . . . . . 1 . . . . . . . . . . . . . . . . Known Exits Taken 11 | . 1 . . . 1 . 1 . 1 . 1 . . . 1 . 1 . 1 . 1 1 . 1 . . . . . Unknown Exits Taken 8 | 1 . 1 1 1 . . . . . . . . . . . . . . . . . . . . 1 1 1 1 . Scrap Searched 3 | . . 1 . 2 . . . . . . . . . . . . . . . . . . . . . . . . . Spaces Dug 243 | . 5 . . . 6 11 . 29 4 12 6 37 1 8 4 . . 1 . 2 . 13 . 14 5 32 11 37 5 Terrain Destroyed 1263 | . 5 . . . 64 261 . 155 6 62 16 61 1 19 5 114 . 5 . 2 5 42 . 35 14 121 59 146 65 Melee 6 | . . . . . . . . . . 3 . . . . . . . . . . . 2 . . . . 1 . . Projectile 263 | . 5 . . . 11 . . . 6 1 . . 1 19 5 2 . 2 . 2 5 25 . 21 14 47 18 27 52 AOE 994 | . . . . . 53 261 . 155 . 58 16 61 . . . 112 . 3 . . . 15 . 14 . 74 40 119 13 Actions | -11 -10 -10 -10 -9 -8 -8 -7 -7 -6 -6 -6 -6 -5 -5 -5 -5 -4 -4 -4 -4 -3 -3 -3 -2 -2 -2 -1 -1 -1 --------- Run | Scr Mat Min Exi Min Mat Gar Fac Gar Fac Gar Fac Gar Fac Was Fac Gar Fac Gar Fac Gar Res Tes Gar Res Qua Sec Acc Com Ac0 Total 22313 | 53 776 569 439 239 788 1416 413 1119 93 915 300 1023 86 588 283 1031 301 687 129 577 725 1080 798 844 1026 1963 607 3006 439 Wait 1894 | . 12 126 80 21 111 96 48 91 9 24 1 40 4 7 2 114 15 21 16 36 6 30 69 30 98 124 14 644 5 Move 16780 | 41 637 428 345 208 590 1189 311 827 73 737 259 868 68 455 264 788 266 579 102 487 584 809 633 586 672 1431 415 1979 149 Hop 1 | . . . . . . . . . . . . . . . . . . . . . . . . . . . . 1 . Pick Up 337 | 6 19 . 5 3 22 12 11 12 . 15 1 16 1 4 2 10 1 12 1 3 13 26 11 17 25 35 18 27 9 Fast Attach 119 | 6 6 . 2 . 3 . 2 5 . 1 9 . . 3 1 1 1 2 . 3 8 9 2 4 15 21 1 5 9 Attach 204 | . 3 . . . 4 . 3 5 1 5 1 7 2 3 . 5 1 2 1 1 5 9 4 20 20 38 13 26 25 Detach 77 | . . . . . . . 2 . . . 1 3 . 1 . 3 . . . 1 3 5 4 7 3 8 . 15 21 Swap 309 | . 10 . 4 3 6 13 6 18 3 30 5 14 1 1 . 7 1 7 . 2 11 22 11 15 16 43 18 28 14 Drop 321 | . 22 . 2 1 13 13 7 15 . 10 4 9 . 9 3 5 1 12 1 1 11 23 9 13 42 46 15 24 10 Fire 2003 | . 52 13 . 3 35 75 16 46 7 76 18 54 10 105 11 81 15 36 8 33 83 141 48 144 126 215 110 247 195 Melee 24 | . . . 1 . . . 1 1 . 15 . . . . . . . . . . . 2 . . 3 . 1 . . Ram . | . . . . . . . . . . . . . . . . . . . . . . . . . . . . . . Kick . | . . . . . . . . . . . . . . . . . . . . . . . . . . . . . . Crush 51 | . 15 2 . . 4 . 6 1 . . 1 . . . . 1 . . . . 1 2 . 8 4 2 2 . 2 Escape Stasis 89 | . . . . . . 18 . 4 . 2 . 12 . . . 10 . 16 . 8 . 2 7 . . . . 10 . Rewire 103 | . . . . . . . . 94 . . . . . . . 6 . . . 2 . . . . 1 . . . . Trap . | . . . . . . . . . . . . . . . . . . . . . . . . . . . . . . Miscellaneous 1 | . . . . . . . . . . . . . . . . . . . . . . . . . 1 . . . . Route ------- -11/Scrapyard -10/Materials (discovered 4 exits: [*Mat x3] / *Min) -10/Mines (discovered 3 exits: [*Mat x2] / *Exi) -10/Exiles -9/Mines -8/Materials (discovered 5 exits: *Fac x3 / [*Sto] / Gar) -8/Garrison (discovered 3 exits: *Fac x3) -7/Factory (discovered 3 exits: [*Low x2] / Gar) -7/Garrison (discovered 3 exits: *Fac x3) -6/Factory -6/Garrison (discovered 3 exits: *Fac x3) -6/Factory (discovered 2 exits: [*Low] / Gar) -6/Garrison (discovered 3 exits: *Fac x3) -5/Factory -5/Waste -5/Factory (discovered 2 exits: [*Upp] / Gar) -5/Garrison (discovered 3 exits: *Fac x3) -4/Factory -4/Garrison (discovered 3 exits: *Fac x3) -4/Factory -4/Garrison (discovered 3 exits: *Res x3) -3/Research (discovered 2 exits: *Res / *Tes) -3/Testing (discovered 2 exits: *Res / Gar) -3/Garrison (discovered 3 exits: *Res x3) -2/Research (discovered 2 exits: *Qua x2) -2/Quarantine (discovered 2 exits: *Acc / *Sec) -2/Section 7 -1/Access -1/Command (discovered 2 exits: [*Sur] / [*Ac0]) -1/Access_0 Near Former Tau Ceti IV History --------- Turn | Location | Event 3 | -11/Scrapyard | Discovered new exit (range 15) 78 | -11/Scrapyard | Entered Materials 302 | -10/Materials | Build established: Mutant 378 | -10/Materials | Discovered new exit (range 16) 528 | -10/Materials | Identified exit to Mines 804 | -10/Materials | Discovered new exit (range 3) 1040 | -10/Materials | Discovered new exit (range 14) 1347 | -10/Materials | Entered Mines 1519 | -10/Mines | Discovered new exit (range 9) 1522 | -10/Mines | Learned 4 Materials zone layouts 1649 | -10/Mines | Deemed a non-threat by the Exiles lab entrance 1649 | -10/Mines | Discovered new exit (range 5) 1886 | -10/Mines | Discovered new exit (range 7) 1893 | -10/Mines | Learned location of Storage (-8) 2200 | -10/Mines | Entered Exiles 2239 | -10/Exiles | Met 8R-AWN 2268 | -10/Exiles | Met EX-HEX 2333 | -10/Exiles | Met EX-DEC 2336 | -10/Exiles | Learned location of Zion (-7) 2362 | -10/Exiles | Met EX-BIN 2389 | -10/Exiles | Aligned with FarCom system 2391 | -10/Exiles | Given EX-Vault access code 2456 | -10/Exiles | Opened EX-Vault 2468 | -10/Exiles | Found Latent Energy Streamer 2475 | -10/Exiles | Found Lightpack 2.0 2477 | -10/Exiles | Found Longsword +1 2515 | -10/Exiles | Warned to stay clear of 0b10 Research branches 2530 | -10/Exiles | Exiles lab attacked by MAIN.C 2730 | -10/Exiles | Discovered new exit (range 10) 2871 | -10/Exiles | Stole three prototypes: Lightpack 2.0, Longsword +1, Latent Energy Streamer 2871 | -10/Exiles | Entered Mines 3063 | -9/Mines | Assembled infested the area 3262 | -9/Mines | Discovered new exit (range 5) 3284 | -9/Mines | Entered Materials 3284 | -8/Materials | Evolved 4 slots: Propulsion x1, Utility x3 3285 | -8/Materials | Identified exit to Factory 3541 | -8/Materials | Build established: Hauler-Mutant 4123 | -8/Materials | Discovered new exit (range 16) 4529 | -8/Materials | Discovered exit to Factory (range 3) 4597 | -8/Materials | Identified exit to Garrison 4597 | -8/Materials | Entered Garrison 4633 | -8/Garrison | Triggered checkpoint 4671 | -8/Garrison | Garrison Relay disabled 4949 | -8/Garrison | Triggered checkpoint 4961 | -8/Garrison | Triggered checkpoint 5059 | -8/Garrison | Discovered exit to Factory (range 10) 5118 | -8/Garrison | Triggered checkpoint 5152 | -8/Garrison | Garrison Relay disabled 5252 | -8/Garrison | Triggered checkpoint 5362 | -8/Garrison | Triggered checkpoint 5375 | -8/Garrison | Garrison Relay disabled 5457 | -8/Garrison | Discovered exit to Factory (range 14) 5789 | -8/Garrison | Triggered checkpoint 5848 | -8/Garrison | Discovered exit to Factory (range 10) 5873 | -8/Garrison | Installed Relay Interface Framework 5936 | -8/Garrison | Garrison Relay disabled 6173 | -8/Garrison | Build established: Bothacker-Mutant 6387 | -8/Garrison | Phase Generator disabled 6849 | -8/Garrison | Spotted B-75 Beast 6961 | -8/Garrison | Garrison Relay disabled 7059 | -8/Garrison | Entered Factory 7059 | -7/Factory | Evolved 2 slots: Utility x2 7061 | -7/Factory | FarCom data flow suspended 7164 | -7/Factory | Fabricated Hvy. Rocket Launcher (x1) 7378 | -7/Factory | Discovered new exit (range 11) 7551 | -7/Factory | Discovered new exit (range 15) 7734 | -7/Factory | Identified exit to Garrison 7760 | -7/Factory | Entered Garrison 7760 | -7/Garrison | Accompanied by 2 allies 7764 | -7/Garrison | Triggered checkpoint 7972 | -7/Garrison | Garrison Relay disabled 8321 | -7/Garrison | Build established: Commander-Mutant 8346 | -7/Garrison | Garrison Relay disabled 8572 | -7/Garrison | Triggered checkpoint 8580 | -7/Garrison | Triggered checkpoint 8637 | -7/Garrison | Triggered checkpoint 8674 | -7/Garrison | Triggered checkpoint 8849 | -7/Garrison | Triggered checkpoint 8944 | -7/Garrison | Garrison Relay disabled 8965 | -7/Garrison | Build established: Bothacker-Mutant 9016 | -7/Garrison | Discovered new exit (range 3) 9203 | -7/Garrison | Phase Generator disabled 9215 | -7/Garrison | Spotted B-75 Beast 9217 | -7/Garrison | Spotted B-75 Beast 9258 | -7/Garrison | Triggered checkpoint 9411 | -7/Garrison | Discovered new exit (range 13) 9531 | -7/Garrison | Discovered new exit (range 14) 9567 | -7/Garrison | Expanded RIF knowledge: Alert ID Control 9618 | -7/Garrison | Triggered checkpoint 9643 | -7/Garrison | Garrison Relay disabled 9725 | -7/Garrison | Entered Factory 9725 | -6/Factory | Accompanied by 1 ally 9725 | -6/Factory | Evolved 2 slots: Utility x2 9779 | -6/Factory | Identified exit to Garrison 9848 | -6/Factory | Garrison activated, responded to threat 9905 | -6/Factory | Entered Garrison 9905 | -6/Garrison | Accompanied by 1 ally 9966 | -6/Garrison | Triggered checkpoint 9990 | -6/Garrison | Garrison Relay disabled 10160 | -6/Garrison | Triggered checkpoint 10252 | -6/Garrison | Triggered checkpoint 10336 | -6/Garrison | Discovered new exit (range 12) 10422 | -6/Garrison | Triggered checkpoint 10484 | -6/Garrison | Garrison Relay disabled 10590 | -6/Garrison | Triggered checkpoint 10656 | -6/Garrison | Spotted B-75 Beast 10687 | -6/Garrison | Spotted B-75 Beast 10713 | -6/Garrison | Destroyed B-75 Beast 10723 | -6/Garrison | Destroyed B-75 Beast 10947 | -6/Garrison | Discovered new exit (range 7) 11008 | -6/Garrison | Triggered checkpoint 11030 | -6/Garrison | Garrison Relay disabled 11213 | -6/Garrison | Triggered checkpoint 11223 | -6/Garrison | Garrison Relay disabled 11465 | -6/Garrison | Garrison Relay disabled 11484 | -6/Garrison | Triggered checkpoint 11517 | -6/Garrison | Discovered new exit (range 14) 11553 | -6/Garrison | Expanded RIF knowledge: Coupler Efficiency 11650 | -6/Garrison | Entered Factory 11650 | -6/Factory | Accompanied by 3 allies 11992 | -6/Factory | Discovered new exit (range 11) 12190 | -6/Factory | Identified exit to Garrison 12193 | -6/Factory | Entered Garrison 12193 | -6/Garrison | Accompanied by 2 allies 12271 | -6/Garrison | Triggered checkpoint 12276 | -6/Garrison | Triggered checkpoint 12314 | -6/Garrison | Triggered checkpoint 12369 | -6/Garrison | Discovered new exit (range 10) 12440 | -6/Garrison | Triggered checkpoint 12582 | -6/Garrison | Triggered checkpoint 12614 | -6/Garrison | Garrison Relay disabled 12888 | -6/Garrison | Triggered checkpoint 12999 | -6/Garrison | Discovered new exit (range 8) 13128 | -6/Garrison | Triggered checkpoint 13172 | -6/Garrison | Garrison Relay disabled 13247 | -6/Garrison | Discovered new exit (range 10) 13276 | -6/Garrison | Expanded RIF knowledge: Coupler Efficiency 13570 | -6/Garrison | Build established: Botlord-Mutant 13580 | -6/Garrison | Triggered checkpoint 13615 | -6/Garrison | Garrison Relay disabled 13944 | -6/Garrison | Entered Factory 13944 | -5/Factory | Accompanied by 4 allies 13944 | -5/Factory | Evolved 2 slots: Utility x2 14092 | -5/Factory | Sucked down chute 14092 | -5/Factory | Entered Waste 14117 | -5/Waste | Spotted C-40 Crusher 14123 | -5/Waste | Spotted C-40 Crusher 14164 | -5/Waste | Destroyed C-40 Crusher 14165 | -5/Waste | 3 allies followed down the chute 14175 | -5/Waste | Destroyed C-40 Crusher 14194 | -5/Waste | Found Damper Plating 14219 | -5/Waste | Spotted C-40 Crusher 14240 | -5/Waste | Spotted C-40 Crusher 14265 | -5/Waste | Spotted C-40 Crusher 14270 | -5/Waste | Destroyed C-40 Crusher 14276 | -5/Waste | Spotted C-40 Crusher 14287 | -5/Waste | Destroyed C-40 Crusher 14341 | -5/Waste | Destroyed C-40 Crusher 14404 | -5/Waste | Destroyed C-40 Crusher 14441 | -5/Waste | Found Damper Plating 14646 | -5/Waste | Warlord forces began an assault 14867 | -5/Waste | Discovered new exit (range 11) 15115 | -5/Waste | Entered Factory 15115 | -5/Factory | Accompanied by 20 allies 15595 | -5/Factory | Discovered new exit (range 9) 15619 | -5/Factory | Garrison activated, responded to threat 15630 | -5/Factory | Identified exit to Garrison 15630 | -5/Factory | Entered Garrison 15630 | -5/Garrison | Accompanied by 8 allies 15699 | -5/Garrison | Spotted B-75 Beast 15702 | -5/Garrison | Triggered checkpoint 15704 | -5/Garrison | Assimilated Beast 6a with formatsys_high 15712 | -5/Garrison | Triggered checkpoint 15789 | -5/Garrison | Discovered new exit (range 12) 15821 | -5/Garrison | Expanded RIF knowledge: Autoassimilate 15890 | -5/Garrison | Triggered checkpoint 15923 | -5/Garrison | Garrison Relay disabled 16042 | -5/Garrison | Triggered checkpoint 16048 | -5/Garrison | Allies destroyed Beast 6a 16204 | -5/Garrison | Discovered new exit (range 13) 16256 | -5/Garrison | Phase Generator disabled 16286 | -5/Garrison | Triggered checkpoint 16410 | -5/Garrison | Triggered checkpoint 16436 | -5/Garrison | Triggered checkpoint 16479 | -5/Garrison | Garrison Relay disabled 16618 | -5/Garrison | Triggered checkpoint 16870 | -5/Garrison | Triggered checkpoint 16928 | -5/Garrison | Triggered checkpoint 16948 | -5/Garrison | Garrison Relay disabled 17017 | -5/Garrison | Discovered new exit (range 12) 17166 | -5/Garrison | Triggered checkpoint 17192 | -5/Garrison | Garrison Relay disabled 17385 | -5/Garrison | Entered Factory 17385 | -4/Factory | Accompanied by 14 allies 17385 | -4/Factory | Evolved 2 slots: Utility x2 17742 | -4/Factory | Spotted B-86 Titan 17757 | -4/Factory | Allies destroyed B-86 Titan 17848 | -4/Factory | Garrison activated, responded to threat 17877 | -4/Factory | Identified exit to Garrison 17922 | -4/Factory | Entered Garrison 17922 | -4/Garrison | Accompanied by 14 allies 18018 | -4/Garrison | Found Gamma Bomb Array 18052 | -4/Garrison | Triggered checkpoint 18052 | -4/Garrison | Spotted B-86 Titan 18058 | -4/Garrison | Triggered checkpoint 18063 | -4/Garrison | Triggered checkpoint 18087 | -4/Garrison | Triggered checkpoint 18156 | -4/Garrison | Discovered new exit (range 12) 18232 | -4/Garrison | Triggered checkpoint 18258 | -4/Garrison | Garrison Relay disabled 18422 | -4/Garrison | Triggered checkpoint 18449 | -4/Garrison | Garrison Relay disabled 18602 | -4/Garrison | Discovered new exit (range 12) 18682 | -4/Garrison | Triggered checkpoint 18704 | -4/Garrison | Garrison Relay disabled 18866 | -4/Garrison | Discovered new exit (range 8) 18893 | -4/Garrison | Expanded RIF knowledge: Structural Interface 18942 | -4/Garrison | Triggered checkpoint 18966 | -4/Garrison | Garrison Relay disabled 19128 | -4/Garrison | Entered Factory 19128 | -4/Factory | Accompanied by 11 allies 19265 | -4/Factory | Spotted B-86 Titan 19268 | -4/Factory | Assimilated Titan 7a with formatsys_high 19285 | -4/Factory | Garrison activated, responded to threat 19335 | -4/Factory | Identified exit to Garrison 19348 | -4/Factory | Entered Garrison 19348 | -4/Garrison | Accompanied by 9 allies 19439 | -4/Garrison | Garrison Relay disabled 19496 | -4/Garrison | Triggered checkpoint 19496 | -4/Garrison | Triggered checkpoint 19508 | -4/Garrison | Triggered checkpoint 19594 | -4/Garrison | Garrison Relay disabled 19602 | -4/Garrison | Triggered checkpoint 19645 | -4/Garrison | Discovered new exit (range 15) 19850 | -4/Garrison | Triggered checkpoint 19908 | -4/Garrison | Garrison Relay disabled 19972 | -4/Garrison | Discovered new exit (range 10) 20056 | -4/Garrison | Triggered checkpoint 20172 | -4/Garrison | Triggered checkpoint 20199 | -4/Garrison | Garrison Relay disabled 20239 | -4/Garrison | Discovered new exit (range 10) 20265 | -4/Garrison | Expanded RIF knowledge: Coupler Efficiency 20359 | -4/Garrison | Entered Research 20359 | -3/Research | Accompanied by 13 allies 20359 | -3/Research | Evolved 2 slots: Power x1, Utility x1 20588 | -3/Research | Found Hvy. Reactive Plating 20657 | -3/Research | Found Prototype Processor 20798 | -3/Research | Discovered new exit (range 15) 20818 | -3/Research | Found Prototype Launcher 20818 | -3/Research | Identified Com. Tesla Bomb Launcher 21031 | -3/Research | Garrison activated, responded to threat 21155 | -3/Research | Found Quantum Capacitor 21228 | -3/Research | Discovered new exit (range 3) 21588 | -3/Research | Identified exit to Testing 21711 | -3/Research | Entered Testing 21760 | -3/Testing | Found Prototype Device 21760 | -3/Testing | Identified Exp. Hardlight Generator 21812 | -3/Testing | Found Prototype Device 21874 | -3/Testing | Found Prototype Launcher 22074 | -3/Testing | Discovered new exit (range 8) 22178 | -3/Testing | Found Prototype Device 22178 | -3/Testing | Identified Exp. Phase Shifter 22206 | -3/Testing | Found Exp. Targeting Computer 22216 | -3/Testing | Found Prototype Reactor 22217 | -3/Testing | Identified Zero-point Reactor 22220 | -3/Testing | Found Zero-point Reactor 22354 | -3/Testing | Garrison activated, responded to threat 22428 | -3/Testing | Found Tachyon Dispersion Ray 22521 | -3/Testing | Found Omega Cannon 22695 | -3/Testing | Found Adv. Kinecellerator 22942 | -3/Testing | Spotted Striker 22973 | -3/Testing | Spotted Striker 23018 | -3/Testing | Found Centrium Heavy Armor Plating 23075 | -3/Testing | Found SHELL Armor 23435 | -3/Testing | Found Cld. Nova Cannon 23669 | -3/Testing | Identified exit to Garrison 23669 | -3/Testing | Entered Garrison 23669 | -3/Garrison | Accompanied by 1 ally 23704 | -3/Garrison | Triggered checkpoint 23764 | -3/Garrison | Spotted B-86 Titan 23772 | -3/Garrison | Triggered checkpoint 23784 | -3/Garrison | Triggered checkpoint 23796 | -3/Garrison | Allies destroyed B-86 Titan 23881 | -3/Garrison | Garrison Relay disabled 23882 | -3/Garrison | Triggered checkpoint 24089 | -3/Garrison | Discovered new exit (range 12) 24121 | -3/Garrison | Expanded RIF knowledge: Robot Detection 24184 | -3/Garrison | Triggered checkpoint 24253 | -3/Garrison | Garrison Relay disabled 24320 | -3/Garrison | Triggered checkpoint 24354 | -3/Garrison | Triggered checkpoint 24502 | -3/Garrison | Discovered new exit (range 14) 24642 | -3/Garrison | Triggered checkpoint 24668 | -3/Garrison | Garrison Relay disabled 24812 | -3/Garrison | Discovered new exit (range 8) 24864 | -3/Garrison | Garrison Relay disabled 25006 | -3/Garrison | Entered Research 25006 | -2/Research | Accompanied by 9 allies 25006 | -2/Research | Evolved 2 slots: Utility x2 25059 | -2/Research | Garrison activated, responded to threat 25346 | -2/Research | P-80 Master assimilated allied Champion 8a 25891 | -2/Research | P-80 Master assimilated allied Champion 9b 25960 | -2/Research | Destroyed 8 combat bots 26069 | -2/Research | Identified exit to Quarantine 26360 | -2/Research | Spotted B-90 Cyclops 26378 | -2/Research | Assimilated Cyclops 9a with formatsys_high 26400 | -2/Research | Entered Quarantine 26400 | -2/Quarantine | Accompanied by 2 allies 26466 | -2/Quarantine | Found Alien Artifact 26479 | -2/Quarantine | Found Alien Artifact 26540 | -2/Quarantine | Identified Transdimensional Reconstructor 26540 | -2/Quarantine | Identified Dimensional Node Initializer 26572 | -2/Quarantine | Found Phase Armor 27088 | -2/Quarantine | Found Subatomic Replicator 27139 | -2/Quarantine | Met incapacitated Sigix Warrior 27139 | -2/Quarantine | Lockdown squad dispatched 27143 | -2/Quarantine | Acquired the access code to the Sigix quarantine chamber 27162 | -2/Quarantine | Garrison activated, responded to threat 27180 | -2/Quarantine | Spotted Lightning 27184 | -2/Quarantine | Spotted Lightning 27184 | -2/Quarantine | Spotted Lightning 27208 | -2/Quarantine | Destroyed Lightning 27212 | -2/Quarantine | Destroyed Lightning 27229 | -2/Quarantine | Destroyed Lightning 27243 | -2/Quarantine | Found EMDS 27570 | -2/Quarantine | Discovered new exit (range 15) 27613 | -2/Quarantine | Cryocooling Duct disabled 27622 | -2/Quarantine | Found Core Stripper 27628 | -2/Quarantine | Ambient heat levels rising (+20) 27628 | -2/Quarantine | Non-combat units ordered to evacuate 27767 | -2/Quarantine | Spotted Fortress 27782 | -2/Quarantine | Destroyed Fortress 27811 | -2/Quarantine | Found Prototype Device 27811 | -2/Quarantine | Identified Exp. Force Field 27820 | -2/Quarantine | Found Prototype Device 27820 | -2/Quarantine | Identified Thermal Barrier 27843 | -2/Quarantine | Found Prototype Reactor 27843 | -2/Quarantine | Identified Vortex Chain Reactor 27847 | -2/Quarantine | Found Vortex Chain Reactor 27973 | -2/Quarantine | Discovered new exit (range 6) 27982 | -2/Quarantine | Entered Section 7 28267 | -2/Section 7 | Spotted S7 Guard 28283 | -2/Section 7 | Destroyed S7 Guard 28317 | -2/Section 7 | Found Core Regenerator 28388 | -2/Section 7 | Spotted S7 Guard 28412 | -2/Section 7 | Destroyed S7 Guard 28439 | -2/Section 7 | Found Core Membrane 28439 | -2/Section 7 | Installed Core Membrane, gained immunity to corruption 28664 | -2/Section 7 | Found Integrated Dissipator 28664 | -2/Section 7 | Installed Integrated Dissipator, increased core heat dissipation (+2%) 28872 | -2/Section 7 | Used Subatomic Replicator to replicate Integrity Redistributor 28883 | -2/Section 7 | Found Integrity Redistributor 28883 | -2/Section 7 | Used Integrity Redistributor, redistributed integrity from core (-352) 28999 | -2/Section 7 | Found Integrated Dissipator 28999 | -2/Section 7 | Installed Integrated Dissipator, increased core heat dissipation (+2%) 29082 | -2/Section 7 | Spotted S7 Guard 29091 | -2/Section 7 | Found Integrated Singularity Reactor 29091 | -2/Section 7 | Installed Integrated Singularity Reactor, increased core energy generation (+2%) 29119 | -2/Section 7 | Discovered new exit (range 11) 29204 | -2/Section 7 | Spotted Executioner 29204 | -2/Section 7 | Spotted Executioner 29210 | -2/Section 7 | Destroyed Executioner 29211 | -2/Section 7 | Destroyed Executioner 29323 | -2/Section 7 | Spotted B-99 Colossus 29324 | -2/Section 7 | Autoassimilated Colossus 9a with RIF 29378 | -2/Section 7 | Found Integrated Reactor 29378 | -2/Section 7 | Installed Integrated Reactor, increased core energy generation (+2%) 29381 | -2/Section 7 | Found Integrated Reactor 29381 | -2/Section 7 | Installed Integrated Reactor, increased core energy generation (+2%) 29384 | -2/Section 7 | Found Integrated Reactor 29384 | -2/Section 7 | Installed Integrated Reactor, increased core energy generation (+2%) 29446 | -2/Section 7 | Found LRC Boosters 29446 | -2/Section 7 | Installed LRC Boosters, increased mass support (+10) 29569 | -2/Section 7 | Found Prototype Ballistic Gun 29569 | -2/Section 7 | Identified Multirail 29662 | -2/Section 7 | Found Hpw. Transdimensional Reconstructor 29926 | -2/Section 7 | Destroyed 8 combat bots 30639 | -2/Section 7 | Spotted Alpha 7 30698 | -2/Section 7 | Destroyed 7 combat bots 30776 | -2/Section 7 | First assault squad dispatched 30930 | -2/Section 7 | Entered Access 30930 | -1/Access | Evolved 2 slots: Utility x2 31216 | -1/Access | Spotted B-99 Colossus 31217 | -1/Access | Spotted B-99 Colossus 31469 | -1/Access | First assault squad dispatched 31737 | -1/Access | P-80 Master assimilated allied Enforcer 10b 31810 | -1/Access | Discovered new exit (range 7) 31826 | -1/Access | Entered Command 32053 | -1/Command | Destroyed M Guard 32056 | -1/Command | Destroyed M Guard 32057 | -1/Command | Spotted Combat Programmer 32057 | -1/Command | Spotted Combat Programmer 32067 | -1/Command | Destroyed Combat Programmer 32076 | -1/Command | Destroyed Combat Programmer 32076 | -1/Command | Destroyed all MAIN.C guards 32112 | -1/Command | First assault squad dispatched 32152 | -1/Command | Found Exp. Targeting Computer 32428 | -1/Command | Found Cld. Nova Cannon 32667 | -1/Command | Destroyed 13 combat bots 32824 | -1/Command | Met MAIN.C 32847 | -1/Command | Destroyed MAIN.C Shell 32849 | -1/Command | MAIN.C activated Command garrisons 32851 | -1/Command | 0b10 Conduit disabled 32880 | -1/Command | Destroyed MAIN.C 33033 | -1/Command | Destroyed 7 combat bots 33111 | -1/Command | Destroyed 13 combat bots 34031 | -1/Command | Found Powered Armor 34067 | -1/Command | Spotted B-99 Colossus 34076 | -1/Command | Destroyed B-99 Colossus 34307 | -1/Command | Discovered new exit (range 10) 34553 | -1/Command | Found Gamma Bomb Array 34881 | -1/Command | Spotted B-99 Colossus 34891 | -1/Command | Destroyed B-99 Colossus 35117 | -1/Command | Build established: Bothacker-Mutant 35344 | -1/Command | Found Exp. Core Analyzer 35586 | -1/Command | Phase Generator disabled 35835 | -1/Command | Spotted B-99 Colossus 35837 | -1/Command | Destroyed B-99 Colossus 35884 | -1/Command | Build established: Hauler-Mutant 36188 | -1/Command | Warped through subspace to slip node 36188 | -1/Command | Discovered new exit (range 4) 36198 | -1/Command | Entered Access_0 36199 | -1/Access_0 | Met Architect 36215 | -1/Access_0 | Destroyed A8 36219 | -1/Access_0 | Architect warped through subspace 36235 | -1/Access_0 | Found Prototype Device 36235 | -1/Access_0 | Identified Exp. Thermal Shield 36312 | -1/Access_0 | Architect warped through subspace 36346 | -1/Access_0 | Architect warped through subspace 36380 | -1/Access_0 | Subspace Access Node disabled 36396 | -1/Access_0 | Architect warped through subspace 36406 | -1/Access_0 | Used Integrity Redistributor, redistributed integrity from core (-288) 36430 | -1/Access_0 | Architect warped through subspace 36445 | -1/Access_0 | Destroyed 8 combat bots 36456 | -1/Access_0 | Found Exp. Phase Shifter 36461 | -1/Access_0 | Architect warped through subspace 36467 | -1/Access_0 | Found Prototype Device 36467 | -1/Access_0 | Identified Desublimator 36493 | -1/Access_0 | Architect warped through subspace 36519 | -1/Access_0 | Architect warped through subspace 36548 | -1/Access_0 | Architect warped through subspace 36561 | -1/Access_0 | Subspace Access Node disabled 36568 | -1/Access_0 | Architect warped through subspace 36588 | -1/Access_0 | Architect warped through subspace 36602 | -1/Access_0 | Subspace Access Node disabled 36643 | -1/Access_0 | Architect warped through subspace 36657 | -1/Access_0 | Architect warped through subspace 36693 | -1/Access_0 | A6 warped into view 36699 | -1/Access_0 | Destroyed A6 36702 | -1/Access_0 | Found Med. Regenerative Plating 36704 | -1/Access_0 | Core integrity fell below 50% 36720 | -1/Access_0 | Architect warped through subspace 36728 | -1/Access_0 | Subspace Access Node disabled 36741 | -1/Access_0 | Used Core Regenerator, restored core integrity (+400) 36816 | -1/Access_0 | Destroyed Architect 36817 | -1/Access_0 | Architect triggered a singularity event 36817 | -1/Access_0 | Released all parts (18) 36817 | -1/Access_0 | Extracted unknown sensor trigger ID from Architect's data core 36820 | -1/Access_0 | Warped through subspace to slip node 36820 | -1/Access_0 | Discovered new exit (range 8) 36824 | *** | Escaped singularity! Last Messages --------------- 36817_ Cld. Nova Cannon crushed and broken. 36817_ Released Exp. Matter Compressor. 36817_ Exp. Matter Compressor crushed and broken. 36817_ Released Quantum Capacitor. 36817_ Quantum Capacitor crushed and broken. 36817_ Released Biometal Medium Treads. 36817_ Biometal Medium Treads crushed and broken. 36817_ Acquired data core, extracted unknown sensor trigger ID. 36818_ A0_COM: 10. 36818_ Acquired Prototype Hover Unit. 36818_ Identified Cld. Linear Gravjet. 36819_ A0_COM: 9. 36820_ A0_COM: 8. 36820_ Acquired Hpw. Transdimensional Reconstructor. 36820_ Warped through subspace, drawn to slip node. 36820_ EXIT=FOUND 36821_ A0_COM: 7. 36822_ A0_COM: 6. 36823_ A0_COM: 5. 36824_ A0_COM: 4. Map ----- +----------------------------------------------------+ | | | | | | | | | | | | | | | | | | | | | | | | | | | | | | | | | ?????????????????????????????????????????????????? | | ?????????????????????????????????????????????????? | | ?????????????????????????????????????????????????? | | ?????????????????????????????????????????????????? | | ?????????????????????????????????????????????????? | | ?????????????????????????????????????????????????? | | ????????????????????????###??????????????????????? | | ???????????????????????## ##?????????????????????? | | ???????????????????????# #?????????????????????? | | ???????????????????????# @ #?????????????????????? | | ??????????????????????## #?????????????????????? | | ??????????????????????# #?????????????????????? | | ??????????????????????# ##?????????????????????? | | ??????????????????????## #?????????????????????? | | ??????????????????????# #?????????????????????? | | ??????????????????????# ##?????????????????????? | | ??????????????????????# < #?????????????????????? | | ??????????????????????# ##?????????????????????? | | ??????????????????????## #??????????????????????? | | ???????????????????????####??????????????????????? | | ?????????????????????????????????????????????????? | | ?????????????????????????????????????????????????? | | ?????????????????????????????????????????????????? | | ?????????????????????????????????????????????????? | | ?????????????????????????????????????????????????? | | ?????????????????????????????????????????????????? | | ?????????????????????????????????????????????????? | | ?????????????????????????????????????????????????? | | ?????????????????????????????????????????????????? | | ?????????????????????????????????????????????????? | | ?????????????????????????????????????????????????? | | ?????????????????????????????????????????????????? | | ?????????????????????????????????????????????????? | | ?????????????????????????????????????????????????? | +----------------------------------------------------+ Best States ------------- Heat Dissipation 130 Coolant Potential 100 Energy Generation 105 Energy Capacity 700 Matter Stores 597 Matter Capacity 800 Sight Range 16 Terrain Scan Range 24 Terrain Scan Density 210 Armor Coverage 3200 Resistance: KI 40 Resistance: TH 30 Resistance: EM 90 Weapon Shielding 90 Phase Shifting 20 Evasion (%) 60 Targeting Accuracy 24 Armor Integrity Analysis 66 Recoil Reduction 3 Matter Filtering 30 Particle Charging 25 Kinecelleration 50 Offensive Hacking 10 Defensive Hacking 10 Item Schematics ----------------- Imp. Fusion Compressor | -3/Testing | Reported Hvy. Disruptor Cannon | -3/Testing | Reported Nanosword | -3/Testing | Reported Stasis Canceller | -3/Testing | Reported Exp. Shield Generator | -3/Testing | Reported Diametric Drive | -3/Testing | Reported Centrium Heavy Armor Plating | -3/Testing | Reported Imp. Energy Mantle | -3/Testing | Reported Shock Maul | -3/Testing | Reported Exp. Heat Sink | -3/Testing | Reported Robot Schematics ------------------ None Fabricated ------------ Hvy. Rocket Launcher | x1 | -7/Factory | Preloaded Alien Tech Used ----------------- Core Stripper Core Membrane Integrated Dissipator Subatomic Replicator Integrity Redistributor Integrated Singularity Reactor Integrated Reactor LRC Boosters Phase Armor Transdimensional Reconstructor Core Regenerator High-powered Transdimensional Reconstructor Achievements -------------- None Challenges ------------ None Game ------ Seed ProtonQuantumInitializer Manual? 0 Play Time 10:14:58 Cumulative 959.3 hours Start 2019.11.15 @ 18:29:26 End 2019.11.19 @ 22:01:59 Sessions 13 Manual Loads 0 Difficulty Rogue Special Mode None Game No. 368 Rogue 368 Adventurer 0 Explorer 0 Win Type 6 Total 244 Types 212/4/11/3/3/2/9 Lore% 97 Gallery% 99 Achievement% 91 Wizard Run 0 Options --------- ASCII 0 Keyboard 0 Movement Numpad Keybinds 0 Fullscreen 0 Font 16/SmallcapsGlow Map View 76x50 Tactical HUD 1 Map Filters NONE Filters NONE Steam 1 RUN: cf17c452-f0c0-4cbd-a109-890bb02180ba